bitfinex-derivatives/quotes_BTCF0:USTF0_20250325
["timestamp","ask_amount","ask_price","bid_price","bid_amount"]
[1742937113430,0.3526336,88178.0,88177.0,0.8122]
[1742937114228,0.1593336,88178.0,88177.0,0.8122]
[1742937115825,0.0096425,88178.0,88177.0,0.9255833]
[1742937116030,0.00904249,88178.0,88177.0,0.9255833]
[1742937116228,0.12242449,88178.0,88177.0,0.9255833]
[1742937116429,0.16941507,88187.0,88183.0,0.1133755]
[1742937116731,0.1133718,88186.0,88185.0,0.113373]
[1742937117035,0.17017507,88187.0,88186.0,0.2097717]
[1742937117218,0.16941507,88187.0,88186.0,0.7405317]
[1742937117617,0.16896151,88187.0,88186.0,0.7405317]
[1742937118029,0.16896151,88187.0,88186.0,0.62716]
[1742937118233,0.16896151,88187.0,88186.0,0.7405317]
[1742937119625,0.15596151,88187.0,88186.0,0.7405317]
[1742937120025,0.15672151,88187.0,88186.0,0.7401317]
[1742937120428,0.1554631,88191.0,88190.0,0.1133665]
[1742937120635,0.1554631,88191.0,88190.0,0.6341265]
[1742937122433,0.1554631,88191.0,88190.0,0.9949265]
[1742937122637,0.15500954,88191.0,88190.0,1.00630133]
[1742937123534,0.15584954,88191.0,88190.0,0.89293483]
[1742937123935,0.15500954,88191.0,88190.0,0.89293483]
[1742937124238,0.15500954,88191.0,88190.0,0.98383483]
[1742937124434,0.00084,88191.0,88190.0,0.73640133]
[1742937124626,8e-05,88191.0,88190.0,1.09720133]
[1742937125024,8e-05,88191.0,88190.0,1.09680133]
[1742937125230,0.0566619,88224.0,88199.0,0.113355]
[1742937125435,0.2145537,88200.0,88199.0,1.116035]
[1742937126525,0.2145537,88200.0,88199.0,1.00268]
[1742937127134,0.2145537,88200.0,88199.0,1.09778]
[1742937128444,0.22357849,88200.0,88199.0,1.09778]
[1742937131447,0.22357562,88200.0,88199.0,1.09778]
[1742937131845,0.22277562,88200.0,88199.0,1.09778]
[1742937132347,0.10942192,88200.0,88199.0,1.09778]
[1742937132649,0.4642599,88227.0,88213.0,0.113337]
[1742937132839,0.01215247,88214.0,88213.0,0.805977]
[1742937133145,0.01215247,88214.0,88213.0,2.38156]
[1742937133146,0.1133357,88214.0,88213.0,2.38156]
[1742937133338,0.1133357,88214.0,88213.0,2.68854]
[1742937133739,0.3067357,88214.0,88213.0,2.68854]
[1742937133934,0.30733571,88214.0,88213.0,2.32774]
[1742937134139,0.30733571,88214.0,88213.0,2.21666]
[1742937134447,0.3067357,88214.0,88213.0,0.37184]
[1742937134743,0.3074957,88214.0,88213.0,0.37184]
[1742937136747,0.3074957,88214.0,88213.0,0.33184]
[1742937144447,0.3074957,88214.0,88213.0,0.1490505]
[1742937144640,0.1133434,88208.0,88207.0,0.00045348]
[1742937144848,0.1139834,88208.0,88207.0,0.10105348]
[1742937145047,0.1139834,88208.0,88207.0,0.10045348]
[1742937145256,0.3071834,88208.0,88207.0,0.10045348]
[1742937146454,0.3071834,88208.0,88207.0,0.19435348]
[1742937146654,0.3071834,88208.0,88207.0,0.19495348]
[1742937148144,0.31826265,88208.0,88207.0,0.30599348]
[1742937148653,0.3071834,88208.0,88207.0,0.30599348]
[1742937148861,0.00064,88208.0,88207.0,1.00013818]
[1742937149049,0.1700065,88213.0,88212.0,0.1133383]
[1742937149249,0.1706465,88213.0,88212.0,0.5839383]
[1742937149444,0.1706865,88213.0,88212.0,0.5839383]
[1742937149643,0.1706865,88213.0,88212.0,0.7695383]
[1742937150250,0.1706865,88213.0,88212.0,2.3695383]
[1742937150455,0.1700065,88213.0,88212.0,2.2695383]
[1742937154158,0.1700065,88213.0,88212.0,0.7695383]
[1742937154362,0.1706465,88213.0,88212.0,0.7695383]
[1742937154752,0.1700065,88213.0,88212.0,0.7695383]
[1742937156462,0.1706465,88213.0,88212.0,0.7695383]
[1742937156857,0.1700065,88213.0,88212.0,0.7695383]
[1742937158163,0.1700065,88213.0,88212.0,0.9805783]
[1742937161556,0.1700065,88213.0,88212.0,1.3413783]
[1742937162467,0.1700065,88213.0,88212.0,1.12804]
[1742937162657,0.1700065,88213.0,88212.0,1.3413783]
[1742937163266,0.1700065,88213.0,88212.0,0.9314]
[1742937163469,0.2637465,88213.0,88212.0,0.8314]
[1742937163670,0.27263523,88213.0,88212.0,0.8314]
[1742937163869,0.28087952,88213.0,88212.0,0.8314]
[1742937164165,0.28087952,88213.0,88212.0,0.94244]
[1742937164363,0.29407007,88213.0,88212.0,1.13524]
[1742937165286,0.28087952,88213.0,88212.0,1.13524]
[1742937167268,0.29410563,88213.0,88212.0,1.0242]
[1742937167476,0.29410563,88213.0,88212.0,0.67644]
[1742937167868,0.39292559,88213.0,88212.0,0.67644]
[1742937169077,0.39292559,88213.0,88212.0,0.2306]
[1742937169871,0.39297954,88213.0,88212.0,0.2306]
[1742937170575,0.39297954,88213.0,88212.0,0.23]
[1742937172886,0.75377954,88213.0,88212.0,0.23]
[1742937173470,1.16148059,88213.0,88212.0,0.23]
[1742937173784,0.1133434,88208.0,88207.0,0.00045348]
[1742937173989,0.113346,88206.0,88205.0,8e-08]
[1742937174280,0.12314969,88206.0,88205.0,8e-08]
[1742937174487,0.12314969,88206.0,88205.0,0.00064]
[1742937174686,0.1133524,88201.0,88199.0,0.82316]
[1742937174888,0.12351609,88201.0,88200.0,0.5508]
[1742937175076,0.12351609,88201.0,88200.0,0.5514]
[1742937175477,0.33338649,88201.0,88200.0,0.5514]
[1742937175983,0.33330858,88201.0,88200.0,0.551]
[1742937176379,0.34445368,88201.0,88200.0,0.551]
[1742937177786,0.34445368,88201.0,88200.0,0.1906]
[1742937177979,0.34444571,88201.0,88200.0,0.1906]
[1742937178375,0.34399223,88201.0,88200.0,0.1906]
[1742937179183,0.75159223,88201.0,88200.0,0.1906]
[1742937179374,0.75159223,88201.0,88200.0,0.19]
[1742937179979,0.74251442,88201.0,88200.0,0.19]
[1742937180181,0.75159219,88201.0,88200.0,0.19]
[1742937180991,0.75159219,88201.0,88200.0,0.1896]
[1742937181390,0.75156799,88201.0,88200.0,0.1896]
[1742937182082,0.73834188,88201.0,88200.0,0.1896]
[1742937182281,0.73827715,88201.0,88200.0,0.1896]
[1742937182477,0.72928831,88201.0,88200.0,0.1896]
[1742937182684,0.73827602,88201.0,88200.0,0.1896]
[1742937183093,0.72928831,88201.0,88200.0,0.1896]
[1742937183290,0.73780825,88201.0,88200.0,0.1902]
[1742937184479,0.73781571,88201.0,88200.0,0.1902]
[1742937185492,0.64771571,88201.0,88200.0,0.1902]
[1742937185692,0.42582517,88201.0,88200.0,0.9553937]
[1742937185878,0.53917757,88201.0,88200.0,0.9549937]
[1742937186084,0.53093328,88201.0,88200.0,1.1488937]
[1742937186692,0.53093328,88201.0,88200.0,1.15995227]
[1742937186886,0.53093328,88201.0,88200.0,1.04659857]
[1742937187781,0.53093328,88201.0,88200.0,1.03554]
[1742937188385,0.5304798,88201.0,88200.0,0.67474]
[1742937188590,0.5303642,88201.0,88200.0,1.03554]
[1742937188791,0.5303642,88201.0,88200.0,1.1488937]
[1742937189786,0.5303642,88201.0,88200.0,1.03554]
[1742937189986,0.52149892,88201.0,88200.0,1.03554]
[1742937190187,0.11389892,88201.0,88200.0,1.1488937]
[1742937191295,0.11389892,88201.0,88200.0,1.1484937]
[1742937191995,0.12269153,88201.0,88200.0,1.1484937]
[1742937192394,0.12214501,88201.0,88200.0,1.1484937]
[1742937192702,0.12214658,88201.0,88200.0,1.1484937]
[1742937193699,0.1216931,88201.0,88200.0,1.1484937]
[1742937195101,0.1216931,88201.0,88200.0,1.03514]
[1742937196096,0.1216931,88201.0,88200.0,1.03474]
[1742937197004,0.12169475,88201.0,88200.0,1.03474]
[1742937197794,0.12169475,88201.0,88200.0,1.0347]
[1742937198103,0.12097224,88201.0,88200.0,1.0347]
[1742937198499,0.12051876,88201.0,88200.0,1.0347]
[1742937200104,0.12139877,88201.0,88200.0,1.0347]
[1742937200503,0.12051876,88201.0,88200.0,1.0347]
[1742937200908,0.12051876,88201.0,88200.0,1.0343]
[1742937202303,0.11244544,88201.0,88200.0,1.0343]
[1742937203306,0.11199196,88201.0,88200.0,1.0343]
[1742937204709,0.1133524,88202.0,88201.0,0.1133519]
[1742937204898,0.13553578,88207.0,88201.0,0.79388]
[1742937205099,0.1133471,88206.0,88205.0,0.1133472]
[1742937205300,8e-05,88204.0,88203.0,0.1133498]
[1742937205611,0.11422851,88204.0,88203.0,2.0840298]
[1742937205807,0.1133485,88204.0,88203.0,2.0836298]
[1742937206308,0.1133485,88204.0,88203.0,1.97068]
[1742937206610,0.1133485,88204.0,88203.0,0.47068]
[1742937207013,0.1133478,88205.0,88204.0,0.1133471]
[1742937207195,0.1133478,88205.0,88204.0,0.5006]
[1742937207608,0.1133478,88205.0,88204.0,0.6139485]
[1742937207811,0.1133478,88205.0,88204.0,0.5006]
[1742937208312,0.11289432,88205.0,88204.0,0.8614]
[1742937210907,0.21259432,88205.0,88204.0,0.861]
[1742937211100,0.21347433,88205.0,88204.0,0.861]
[1742937211299,0.22145088,88205.0,88204.0,0.861]
[1742937212612,0.21347433,88205.0,88204.0,0.861]
[1742937213302,0.21302085,88205.0,88204.0,0.861]
[1742937215814,0.21302085,88205.0,88204.0,0.8606]
[1742937216510,0.31172085,88205.0,88204.0,0.8606]
[1742937217611,0.41340926,88205.0,88204.0,0.8606]
[1742937218417,0.41295578,88205.0,88204.0,0.8606]
[1742937218599,0.51015578,88205.0,88204.0,0.8606]
[1742937220610,0.51015578,88205.0,88204.0,0.90537264]
[1742937220804,0.51015578,88205.0,88204.0,0.90497264]
[1742937221514,0.51015578,88205.0,88204.0,0.8602]
[1742937221714,0.51812737,88205.0,88204.0,0.8602]
[1742937221902,0.51812737,88205.0,88204.0,0.97116]
[1742937222311,0.51812737,88205.0,88204.0,1.06166]
[1742937223212,0.51767389,88205.0,88204.0,1.06166]
[1742937224416,0.5097023,88205.0,88204.0,1.06166]
[1742937225113,0.40801389,88205.0,88204.0,0.9507]
[1742937225333,0.81561389,88205.0,88204.0,0.4994]
[1742937225512,0.81561389,88205.0,88204.0,0.499]
[1742937228121,0.81516041,88205.0,88204.0,0.2406]
[1742937228822,0.87025355,88205.0,88204.0,0.2406]
[1742937229117,0.87025355,88205.0,88204.0,0.24]
[1742937230324,0.87025355,88205.0,88204.0,0.24088]
[1742937230524,0.87025355,88205.0,88204.0,0.24048]
[1742937232609,0.87025355,88205.0,88204.0,0.2396]
[1742937233010,1.03941574,88205.0,88204.0,0.2396]
[1742937233928,0.92878882,88205.0,88204.0,0.2396]
[1742937235011,1.04213612,88205.0,88204.0,0.2396]
[1742937235524,1.04213612,88205.0,88204.0,0.2392]
[1742937236728,0.81742731,88205.0,88204.0,0.2392]
[1742937236928,0.81742731,88205.0,88204.0,0.2398]
[1742937237831,0.81697383,88205.0,88204.0,0.2398]
[1742937240229,0.81697383,88205.0,88204.0,0.2394]
[1742937240430,0.52182731,88205.0,88204.0,0.2394]
[1742937240931,0.11422731,88205.0,88204.0,0.4594]
[1742937241123,0.20872731,88205.0,88204.0,0.4594]
[1742937241930,0.09538001,88205.0,88204.0,0.4594]
[1742937242731,0.09492653,88205.0,88204.0,0.4594]
[1742937243230,0.20827383,88205.0,88204.0,0.4594]
[1742937244329,0.39827383,88205.0,88204.0,0.4594]
[1742937245234,0.39827383,88205.0,88204.0,0.459]
[1742937245621,0.11377383,88205.0,88204.0,0.459]
[1742937246525,0.24949051,88205.0,88204.0,0.459]
[1742937247524,0.24903703,88205.0,88204.0,0.459]
[1742937247725,0.24967703,88205.0,88204.0,0.459]
[1742937249025,0.22755668,88205.0,88204.0,0.459]
[1742937250135,0.22755668,88205.0,88204.0,0.4586]
[1742937250319,0.09184,88205.0,88204.0,0.4586]
[1742937250519,0.09180001,88205.0,88204.0,0.4586]
[1742937252735,0.09134653,88205.0,88204.0,0.4586]
[1742937255137,0.09134653,88205.0,88204.0,0.4582]
[1742937255730,0.18124653,88205.0,88204.0,0.4582]
[1742937257024,0.29459383,88205.0,88204.0,0.4582]
[1742937257437,0.38369383,88205.0,88204.0,0.4582]
[1742937257640,0.38324035,88205.0,88204.0,0.4582]
[1742937258540,0.79084035,88205.0,88204.0,0.4582]
[1742937260039,0.79084035,88205.0,88204.0,0.4578]
[1742937262642,0.79038687,88205.0,88204.0,0.4578]
[1742937264042,0.79038687,88205.0,88204.0,0.407853]
[1742937264236,0.1133575,88197.0,88196.0,0.0905]
[1742937264548,0.4749575,88197.0,88196.0,0.53114]
[1742937265133,0.5708575,88197.0,88196.0,0.53114]
[1742937265831,0.6653575,88197.0,88196.0,0.53114]
[1742937267343,1.0729575,88197.0,88196.0,0.53114]
[1742937268447,1.0729575,88197.0,88196.0,0.44064]
[1742937269544,1.0729575,88197.0,88196.0,0.52954]
[1742937269734,0.1133627,88193.0,88191.0,0.00045356]
[1742937269939,0.1133627,88193.0,88192.0,0.41017008]
[1742937269940,0.52200271,88193.0,88192.0,0.41017008]
[1742937270142,0.52200271,88193.0,88192.0,0.41077008]
[1742937270848,0.70470271,88193.0,88192.0,0.59627008]
[1742937273743,0.70470271,88193.0,88192.0,0.41077008]
[1742937273936,0.70470271,88193.0,88192.0,0.41017008]
[1742937274341,0.75979729,88193.0,88192.0,0.41017008]
[1742937275753,0.75979729,88193.0,88192.0,0.50527008]
[1742937275948,0.75979729,88193.0,88192.0,0.50595008]
[1742937277753,0.92932836,88193.0,88192.0,0.50595008]
[1742937279655,0.92932836,88193.0,88192.0,0.41085008]
[1742937280150,0.92932836,88193.0,88192.0,0.23201588]
[1742937280356,0.81596566,88193.0,88185.0,0.08435956]
[1742937280551,0.81596566,88193.0,88185.0,0.47495956]
[1742937280552,0.1133717,88186.0,88185.0,0.47495956]
[1742937280741,0.1143717,88186.0,88185.0,0.47495956]
[1742937280946,0.3831717,88186.0,88185.0,0.47455956]
[1742937281346,0.7907717,88186.0,88185.0,0.3362237]
[1742937281654,0.7907717,88186.0,88177.0,0.00017008]
[1742937281655,0.113382,88178.0,88177.0,0.00017008]
[1742937281858,0.114542,88178.0,88177.0,0.40081008]
[1742937282160,0.383342,88178.0,88177.0,0.40081008]
[1742937282456,0.295242,88178.0,88177.0,0.40081008]
[1742937283344,0.29478844,88178.0,88177.0,0.40081008]
[1742937284164,0.29478844,88178.0,88177.0,0.48941008]
[1742937284860,0.70238844,88178.0,88177.0,0.48941008]
[1742937285060,0.71371614,88178.0,88177.0,0.48941008]
[1742937290062,0.1133845,88176.0,88175.0,0.00053364]
[1742937290258,0.2256645,88176.0,88175.0,0.16618825]
[1742937290760,0.2256645,88176.0,88175.0,0.01232005]
[1742937290956,0.2256645,88176.0,88175.0,5e-08]
[1742937293060,0.113391,88171.0,88170.0,5e-08]
[1742937293267,0.1134,88164.0,88163.0,0.01891973]
[1742937293460,0.1134013,88163.0,88162.0,3e-08]
[1742937293665,0.1134013,88163.0,88162.0,0.31000003]
[1742937293666,0.3014613,88163.0,88162.0,0.31000003]
[1742937296561,0.7090613,88163.0,88162.0,0.31000003]
[1742937297073,0.7090613,88163.0,88162.0,0.49380003]
[1742937298759,0.7090613,88163.0,88162.0,0.4938]
[1742937300173,0.7090613,88163.0,88162.0,0.49452]
[1742937301062,0.7090613,88163.0,88162.0,0.40632]
[1742937301961,0.5227613,88163.0,88162.0,0.40632]
[1742937302556,0.53053701,88163.0,88162.0,0.31072]
[1742937302761,0.53053701,88163.0,88162.0,0.24072]
[1742937303270,0.5227613,88163.0,88162.0,0.24072]
[1742937304062,0.5227613,88163.0,88162.0,0.24]
[1742937305274,0.53052458,88163.0,88162.0,0.24072]
[1742937306564,0.71172458,88163.0,88162.0,0.24072]
[1742937309080,0.71172458,88163.0,88162.0,0.24]
[1742937309673,0.71172458,88163.0,88162.0,0.24072]
[1742937311074,0.82264458,88163.0,88162.0,0.24072]
[1742937312982,0.83141653,88163.0,88162.0,0.24072]
[1742937313582,0.8314174,88163.0,88162.0,0.24072]
[1742937313886,1.1922174,88163.0,88162.0,0.2035887]
[1742937314185,1.1922174,88163.0,88159.0,0.00045372]
[1742937314186,0.1134051,88160.0,88159.0,0.00045372]
[1742937314381,0.113409,88157.0,88156.0,0.04250972]
[1742937314684,0.115249,88157.0,88156.0,2e-08]
[1742937314883,0.1134103,88156.0,88155.0,0.01953282]
[1742937315086,0.30081401,88156.0,88155.0,0.27953282]
[1742937315399,0.30857729,88156.0,88155.0,0.27913282]
[1742937316171,0.71617729,88156.0,88155.0,0.1873459]
[1742937317185,0.71617729,88156.0,88155.0,0.0499476]
[1742937317387,0.1134116,88155.0,88152.0,8e-05]
[1742937317574,0.48489531,88155.0,88154.0,0.27017008]
[1742937317773,0.67690487,88155.0,88154.0,0.27017008]
[1742937319087,0.67690487,88155.0,88154.0,0.36197008]
[1742937319488,0.49220487,88155.0,88154.0,0.36197008]
[1742937319796,0.41591982,88163.0,88159.0,0.0567029]
[1742937319797,0.05511982,88163.0,88159.0,0.0567029]
[1742937319979,0.4076,88169.0,88159.0,0.0567029]
[1742937319980,0.25891376,88166.0,88163.0,0.1134004]
[1742937320180,0.20305496,88166.0,88165.0,0.1133987]
[1742937320485,0.20305496,88166.0,88165.0,0.6036787]
[1742937320697,0.0566958,88171.0,88165.0,0.6036787]
[1742937320698,0.1133892,88173.0,88168.0,0.0566969]
[1742937320889,0.11398921,88173.0,88172.0,0.3608]
[1742937321085,0.11398921,88173.0,88172.0,0.62144]
[1742937321590,0.11398921,88173.0,88172.0,0.79894]
[1742937322986,0.11353557,88173.0,88172.0,0.79894]
[1742937324488,0.20533557,88173.0,88172.0,0.79894]
[1742937325089,0.11353557,88173.0,88172.0,0.79894]
[1742937325482,0.11353557,88173.0,88172.0,0.79854]
[1742937326987,0.11353557,88173.0,88172.0,0.43814]
[1742937327792,0.11308193,88173.0,88172.0,0.43814]
[1742937329895,0.20028193,88173.0,88172.0,0.43814]
[1742937330420,0.20028193,88173.0,88172.0,0.43774]
[1742937330600,0.28918193,88173.0,88172.0,0.43774]
[1742937331807,0.29814236,88173.0,88172.0,0.43774]
[1742937332799,0.29773842,88173.0,88172.0,0.43774]
[1742937333094,0.12163842,88173.0,88172.0,0.43774]
[1742937334000,0.20673842,88173.0,88172.0,0.52744]
[1742937334201,0.20671223,88173.0,88172.0,0.52744]
[1742937335293,0.20671223,88173.0,88172.0,0.52704]
[1742937335492,0.20671223,88173.0,88172.0,0.52772]
[1742937336493,0.20671223,88173.0,88172.0,0.43802]
[1742937336494,0.29681223,88173.0,88172.0,0.43802]
[1742937336805,0.38791223,88173.0,88172.0,0.43802]
[1742937337806,0.38745859,88173.0,88172.0,0.43802]
[1742937338196,0.29635859,88173.0,88172.0,0.43802]
[1742937338390,0.00958395,88173.0,88172.0,0.65802]
[1742937338598,0.00898394,88173.0,88172.0,0.7714097]
[1742937338999,0.16953948,88187.0,88183.0,0.1133731]
[1742937339204,0.34039558,88187.0,88186.0,0.3608]
[1742937339405,0.34039558,88187.0,88186.0,0.8114]
[1742937340307,0.33994202,88187.0,88186.0,0.82277009]
[1742937340494,0.33994202,88187.0,88186.0,0.8114]
[1742937340695,0.33994202,88187.0,88186.0,0.811]
[1742937340893,0.1700561,88187.0,88186.0,0.811]
[1742937341904,0.1700561,88187.0,88186.0,1.01214222]
[1742937342399,0.1708961,88187.0,88186.0,1.01214222]
[1742937342912,0.1700561,88187.0,88186.0,1.12551392]
[1742937343105,0.1700561,88187.0,88186.0,1.12511392]
[1742937343613,0.1708961,88187.0,88186.0,1.12511392]
[1742937345306,0.1997627,88194.0,88192.0,0.1133627]
[1742937345614,0.3798627,88194.0,88193.0,0.2957627]
[1742937345811,0.38046271,88194.0,88193.0,0.8872427]
[1742937349508,0.38094268,88194.0,88193.0,0.8872427]
[1742937349700,0.38881532,88194.0,88193.0,0.8872427]
[1742937350511,0.38881532,88194.0,88193.0,1.2480427]
[1742937350715,0.38821531,88194.0,88193.0,1.2480427]
[1742937353711,0.38034267,88194.0,88193.0,1.2480427]
[1742937360429,0.38914977,88194.0,88193.0,1.2480427]
[1742937361219,0.38914977,88194.0,88193.0,0.8414]
[1742937361413,0.38974978,88194.0,88193.0,0.8414]
[1742937361607,0.39773015,88194.0,88193.0,0.8414]
[1742937361808,0.40924701,88194.0,88193.0,0.8414]
[1742937362521,0.39773015,88194.0,88193.0,0.8414]
[1742937363122,0.40906069,88194.0,88193.0,0.8414]
[1742937363423,0.39773015,88194.0,88193.0,0.8414]
[1742937363621,0.38892305,88194.0,88193.0,0.8414]
[1742937364709,0.40006712,88194.0,88193.0,0.8414]
[1742937365118,0.38892305,88194.0,88193.0,0.8414]
[1742937365521,0.39769446,88194.0,88193.0,0.8414]
[1742937366224,0.1133768,88182.0,88179.0,0.37]
[1742937366519,0.1140968,88182.0,88181.0,0.24447665]
[1742937366719,0.12207717,88182.0,88181.0,0.24447665]
[1742937367417,0.12207717,88182.0,88181.0,0.04064]
[1742937370117,0.30207717,88182.0,88181.0,0.04]
[1742937373428,0.1133807,88179.0,88178.0,0.00017008]
[1742937373634,0.1141407,88179.0,88178.0,0.28017008]
[1742937374431,0.12212107,88179.0,88178.0,0.28017008]
[1742937374724,0.52972107,88179.0,88178.0,0.25118248]
[1742937376325,0.5217407,88179.0,88178.0,0.25118248]
[1742937378023,0.5217407,88179.0,88178.0,0.25190248]
[1742937378821,0.52949021,88179.0,88178.0,0.25190248]
[1742937379720,0.52949021,88179.0,88178.0,0.25118248]
[1742937381724,0.52949021,88179.0,88178.0,0.25178248]
[1742937381925,0.71239021,88179.0,88178.0,0.25178248]
[1742937384029,0.12189021,88179.0,88178.0,0.61258248]
[1742937384338,0.1133807,88179.0,88178.0,1.01538248]
[1742937385329,0.1183807,88179.0,88178.0,1.01638248]
[1742937386129,0.1183807,88179.0,88178.0,1.01738248]
[1742937386130,0.1233807,88179.0,88178.0,1.01738248]
[1742937386942,0.1241807,88179.0,88178.0,1.01738248]
[1742937389434,0.1241807,88179.0,88178.0,0.93188248]
[1742937389634,0.2147807,88179.0,88178.0,0.57108248]
[1742937389836,0.2979807,88179.0,88178.0,0.57108248]
[1742937390343,0.30575233,88179.0,88178.0,0.57108248]
[1742937391846,0.2979807,88179.0,88178.0,0.57108248]
[1742937398052,0.3868807,88179.0,88178.0,0.57108248]
[1742937417667,0.16961861,88183.0,88178.0,0.93188248]
[1742937417893,0.37238788,88194.0,88187.0,0.0566846]
[1742937417894,0.00047997,88194.0,88187.0,0.0566846]
[1742937418172,0.11353148,88195.0,88194.0,0.1133614]
[1742937418374,0.11421148,88195.0,88194.0,0.7016414]
[1742937418771,0.11361148,88195.0,88194.0,0.7016414]
[1742937419168,0.11353148,88195.0,88194.0,0.7016414]
[1742937419772,0.11953148,88195.0,88194.0,0.7016414]
[1742937420766,0.11953148,88195.0,88194.0,0.58828]
[1742937420971,0.12021148,88195.0,88194.0,0.67858]
[1742937421371,0.12730217,88195.0,88194.0,0.67858]
[1742937421973,0.11953148,88195.0,88194.0,0.67858]
[1742937423366,0.12729199,88195.0,88194.0,0.67858]
[1742937423981,0.11953148,88195.0,88194.0,0.67858]
[1742937431190,0.12021148,88195.0,88194.0,0.67858]
[1742937433181,0.12021148,88195.0,88194.0,0.78934]
[1742937433483,0.21301148,88195.0,88194.0,0.67858]
[1742937433679,0.31021148,88195.0,88194.0,0.67858]
[1742937434487,0.21301148,88195.0,88194.0,0.67858]
[1742937440889,0.12021148,88195.0,88194.0,0.67858]
[1742937441085,0.11953148,88195.0,88194.0,0.67858]
[1742937441586,0.11953148,88195.0,88194.0,0.7919414]
[1742937441786,0.11353148,88195.0,88194.0,0.67858]
[1742937441985,0.11453148,88195.0,88194.0,0.67858]
[1742937442190,0.11453148,88195.0,88194.0,0.7919414]
[1742937442389,0.11425148,88195.0,88194.0,0.7919414]
[1742937442694,0.11653148,88195.0,88194.0,0.67858]
[1742937442879,0.11721148,88195.0,88194.0,0.67858]
[1742937443283,0.11521148,88195.0,88194.0,0.67858]
[1742937443593,0.11721148,88195.0,88194.0,0.67858]
[1742937444678,0.20921148,88195.0,88194.0,0.67858]
[1742937444884,0.21021148,88195.0,88194.0,0.67858]
[1742937446800,0.21021148,88195.0,88194.0,0.70174]
[1742937446987,0.30621148,88195.0,88194.0,0.70174]
[1742937450291,0.44188898,88195.0,88194.0,0.70174]
[1742937453986,0.30621148,88195.0,88194.0,0.70174]
[1742937456992,0.30621148,88195.0,88194.0,0.59098]
[1742937458004,0.30621148,88195.0,88194.0,0.4578853]
[1742937458504,0.113364,88192.0,88188.0,0.10527515]
[1742937458701,0.4741678,88189.0,88188.0,0.12030365]
[1742937458895,0.1133755,88183.0,88182.0,0.09382761]
[1742937459095,0.11433551,88183.0,88182.0,0.19595961]
[1742937459304,0.11433551,88183.0,88182.0,0.19659961]
[1742937459500,0.12545024,88183.0,88182.0,0.14000003]
[1742937459797,0.31795024,88183.0,88182.0,0.15231963]
[1742937459989,0.31795024,88183.0,88182.0,0.03974033]
[1742937460595,0.31795024,88183.0,88182.0,0.27000003]
[1742937460596,0.31995024,88183.0,88182.0,0.27000003]
[1742937460797,0.31995024,88183.0,88182.0,0.27]
[1742937460996,0.31995024,88183.0,88182.0,0.2109331]
[1742937462305,0.32295024,88183.0,88182.0,0.2109331]
[1742937463402,0.37805869,88183.0,88182.0,0.2109331]
[1742937464195,0.37805869,88183.0,88182.0,0.1089275]
[1742937466705,0.37605869,88183.0,88182.0,0.1089275]
[1742937466903,0.38105869,88183.0,88182.0,0.1089275]
[1742937468200,0.32595024,88183.0,88182.0,0.1089275]
[1742937469703,0.1133845,88176.0,88175.0,0.00045364]
[1742937469909,0.1133845,88176.0,88175.0,0.36395364]
[1742937469910,0.11502451,88176.0,88175.0,0.36395364]
[1742937470506,0.30262451,88176.0,88175.0,0.36395364]
[1742937471702,0.30562451,88176.0,88175.0,0.36395364]
[1742937472200,0.67142451,88176.0,88175.0,0.04102194]
[1742937472600,0.1133884,88173.0,88172.0,4e-08]
[1742937472801,0.11502841,88173.0,88172.0,0.10654324]
[1742937473011,0.11502841,88173.0,88172.0,0.07036994]
[1742937473711,0.11902841,88173.0,88172.0,0.07036994]
[1742937473895,0.11902841,88173.0,88172.0,0.06996994]
[1742937474099,0.40242841,88173.0,88172.0,0.06996994]
[1742937474999,0.40542841,88173.0,88172.0,0.06996994]
[1742937475199,0.41392671,88173.0,88172.0,0.06996994]
[1742937476300,0.41392671,88173.0,88172.0,0.16566994]
[1742937476502,0.41347307,88173.0,88172.0,0.16566994]
[1742937477702,0.77427307,88173.0,88172.0,0.16566994]
[1742937479009,0.77427307,88173.0,88172.0,0.16526994]
[1742937481411,0.77381943,88173.0,88172.0,0.16526994]
[1742937482009,0.113391,88171.0,88170.0,8e-08]
[1742937482218,0.1134025,88162.0,88161.0,0.03093148]
[1742937482416,0.11512251,88162.0,88161.0,0.27093148]
[1742937483115,0.29752251,88162.0,88161.0,0.27093148]
[1742937485112,0.30964531,88162.0,88161.0,0.27093148]
[1742937488525,0.44516658,88162.0,88161.0,0.27093148]
[1742937492911,0.44516658,88162.0,88161.0,0.2111936]
[1742937493312,0.35276658,88162.0,88161.0,0.2111936]
[1742937493625,0.21724531,88162.0,88161.0,0.3020936]
[1742937494623,0.21724531,88162.0,88161.0,0.3021736]
[1742937496723,0.38671294,88162.0,88161.0,0.3021736]
[1742937499236,0.48081294,88162.0,88161.0,0.3020936]
[1742937499627,0.48081294,88162.0,88161.0,0.3021736]
[1742937499828,0.29671294,88162.0,88161.0,0.3021736]
[1742937500027,0.35183296,88162.0,88161.0,0.3021736]
[1742937500225,0.44673296,88162.0,88161.0,0.3021736]
[1742937502020,0.4431309,88162.0,88161.0,0.3021736]
[1742937504426,0.27366327,88162.0,88161.0,0.3021736]
[1742937505027,0.17876327,88162.0,88161.0,0.3021736]
[1742937505337,0.05784003,88162.0,88161.0,0.5421736]
[1742937505628,0.05784003,88162.0,88161.0,0.66715538]
[1742937505828,0.05686628,88170.0,88167.0,0.1133961]
[1742937506031,0.1137948,88168.0,88167.0,0.8092961]
[1742937506236,0.1137948,88168.0,88167.0,0.7883]
[1742937507128,0.1157948,88168.0,88167.0,0.7883]
[1742937508237,0.1177948,88168.0,88167.0,0.7883]
[1742937508735,0.1177948,88168.0,88167.0,0.89902]
[1742937509127,0.1189548,88168.0,88167.0,0.89902]
[1742937514630,0.1189548,88168.0,88167.0,1.25982]
[1742937517838,0.1189548,88168.0,88167.0,0.6904]
[1742937518138,0.1189548,88168.0,88167.0,0.5006]
[1742937518644,0.3038548,88168.0,88167.0,0.5006]
[1742937532950,0.3038548,88168.0,88167.0,0.4239616]
[1742937533151,0.3038548,88168.0,88167.0,0.3574194]
[1742937533654,0.3038548,88168.0,88167.0,0.2851374]
[1742937533853,0.3038548,88168.0,88167.0,0.1712663]
[1742937534055,0.3038548,88168.0,88167.0,0.2406]
[1742937534354,0.43972477,88168.0,88167.0,0.2406]
[1742937537958,0.3038548,88168.0,88167.0,0.2406]
[1742937545852,0.35897363,88168.0,88167.0,0.2406]
[1742937547762,0.35897363,88168.0,88167.0,0.2105403]
[1742937547957,0.35897363,88168.0,88167.0,0.1811606]
[1742937548365,0.26467363,88168.0,88167.0,0.1811606]
[1742937548559,0.06067883,88168.0,88167.0,0.19235269]